bitfinex/quotes_SOLUSD_20220307
["timestamp","ask_amount","ask_price","bid_price","bid_amount"]
[1646626755477,3.29121405,82.585,82.508,0.56325319]
[1646626755679,3.29121405,82.588,82.508,0.56325319]
[1646626755879,3.29121405,82.592,82.508,0.56325319]
[1646626756079,9.34721405,82.591,82.52,18.1732]
[1646626756282,30.34586607,82.59,82.522,48.71625929]
[1646626756479,6.58676607,82.589,82.522,48.71625929]
[1646626756880,18.39719842,82.588,82.522,48.71625929]
[1646626757279,6.58676607,82.587,82.522,48.71625929]
[1646626757979,23.7591,82.59,82.522,48.71625929]
[1646626757980,6.58676607,82.589,82.53,18.1719]
[1646626758181,6.58676607,82.589,82.531,23.476]
[1646626758480,18.39502065,82.588,82.531,23.476]
[1646626758804,12.64276607,82.587,82.531,23.476]
[1646626759184,6.58676607,82.586,82.531,23.476]
[1646626759382,6.056,82.585,82.531,23.476]
[1646626759980,6.056,82.589,82.531,23.476]
[1646626760383,6.58658556,82.588,82.531,23.476]
[1646626760581,6.056,82.587,82.531,23.476]
[1646626760882,6.58658556,82.586,82.531,23.476]
[1646626761080,6.056,82.585,82.531,23.476]
[1646626761482,6.58658556,82.584,82.531,23.476]
[1646626761882,23.7591,82.59,82.531,23.476]
[1646626762283,24.98674853,82.589,82.531,23.476]
[1646626762483,12.6424488,82.588,82.531,23.476]
[1646626762684,6.5864488,82.587,82.531,23.476]
[1646626762884,6.056,82.586,82.531,23.476]
[1646626763085,6.5864488,82.585,82.531,23.476]
[1646626763286,6.056,82.584,82.531,23.476]
[1646626763785,6.056,82.589,82.531,23.476]
[1646626763985,6.58643628,82.588,82.531,23.476]
[1646626764185,6.056,82.587,82.531,23.476]
[1646626764384,6.58643628,82.586,82.531,23.476]
[1646626764585,6.58643628,82.587,82.531,23.476]
[1646626764784,23.7591,82.59,82.531,23.476]
[1646626764986,6.58628027,82.589,82.531,23.476]
[1646626765189,6.056,82.588,82.531,23.476]
[1646626765588,6.056,82.589,82.531,23.476]
[1646626765790,6.58631193,82.588,82.531,23.476]
[1646626765988,6.056,82.587,82.531,23.476]
[1646626766613,6.056,82.589,82.531,23.476]
[1646626767013,6.5862718,82.588,82.531,23.476]
[1646626767213,6.056,82.587,82.531,23.476]
[1646626767623,6.056,82.589,82.531,23.476]
[1646626767814,6.58627372,82.588,82.531,23.476]
[1646626768014,6.056,82.587,82.531,23.476]
[1646626768216,6.056,82.587,82.532,6.056]
[1646626768516,6.056,82.589,82.532,6.056]
[1646626768713,6.5862711,82.588,82.532,6.056]
[1646626768916,6.056,82.587,82.532,6.056]
[1646626769313,6.056,82.589,82.532,6.056]
[1646626769514,6.5863258,82.588,82.532,6.056]
[1646626769715,6.056,82.587,82.532,6.056]
[1646626769914,6.5863258,82.586,82.531,23.476]
[1646626770114,6.056,82.589,82.531,23.476]
[1646626770316,6.58629034,82.588,82.531,23.476]
[1646626770617,6.056,82.587,82.531,23.476]
[1646626771015,6.056,82.589,82.532,6.056]
[1646626771516,6.58626747,82.588,82.532,6.056]
[1646626771714,6.056,82.587,82.531,23.476]
[1646626772114,6.056,82.589,82.531,23.476]
[1646626772315,6.58632825,82.588,82.531,23.476]
[1646626772514,6.056,82.587,82.531,23.476]
[1646626772714,6.056,82.587,82.532,6.056]
[1646626773215,6.58632825,82.586,82.532,6.056]
[1646626773414,6.056,82.585,82.532,6.056]
[1646626773814,6.58632825,82.584,82.532,6.056]
[1646626774017,24.44029388,82.583,82.532,6.056]
[1646626774315,6.58632825,82.582,82.531,23.476]
[1646626774515,6.056,82.581,82.531,23.476]
[1646626774716,7.6615277,82.58,82.531,23.476]
[1646626774916,12.64232825,82.579,82.531,23.476]
[1646626775116,6.58632825,82.578,82.527,60.8899754]
[1646626775316,6.056,82.577,82.527,60.8899754]
[1646626775615,6.58632825,82.576,82.527,60.8899754]
[1646626775817,6.056,82.575,82.527,60.8899754]
[1646626776216,6.056,82.578,82.527,60.8899754]
[1646626776416,6.58708565,82.577,82.527,60.8899754]
[1646626776619,6.056,82.576,82.527,60.8899754]
[1646626776816,6.58708565,82.575,82.527,60.8899754]
[1646626777016,6.056,82.574,82.527,60.8899754]
[1646626777619,6.056,82.58,82.527,60.8899754]
[1646626777817,6.056,82.581,82.527,60.8899754]
[1646626778017,3.29121405,82.588,82.527,60.8899754]
[1646626778517,55.87551752,82.596,82.527,60.8899754]
[1646626778518,3.29121405,82.589,82.527,60.8899754]
[1646626778717,3.29121405,82.589,82.528,24.4849]
[1646626778718,6.056,82.588,82.528,24.4849]
[1646626779016,6.58635182,82.587,82.528,24.4849]
[1646626779219,6.056,82.586,82.528,24.4849]
[1646626779418,29.73245182,82.585,82.48,60.5946]
[1646626779618,3.29121405,82.574,82.488,17.7848]
[1646626779817,6.057,82.573,82.488,17.7848]
[1646626780017,3.29121405,82.562,82.488,17.7848]
[1646626780317,15.93556587,82.561,82.488,17.7848]
[1646626780516,6.96448289,82.56,82.5,61.36259543]
[1646626780719,15.93556587,82.559,82.5,61.36259543]
[1646626780917,6.58635182,82.558,82.5,61.36259543]
[1646626781117,6.058,82.557,82.5,61.36259543]
[1646626781518,6.58635182,82.556,82.5,61.36259543]
[1646626781717,6.058,82.555,82.5,61.36259543]
[1646626782118,6.58635182,82.554,82.5,61.36259543]
[1646626782317,6.058,82.553,82.5,61.36259543]
[1646626782718,6.58854179,82.552,82.5,61.36259543]
[1646626782917,9.87975584,82.558,82.5,61.36259543]
[1646626783118,6.058,82.557,82.5,61.36259543]
[1646626783519,6.58854179,82.556,82.5,61.36259543]
[1646626783719,6.058,82.555,82.481,24.4849]
[1646626783919,6.58854179,82.554,82.481,24.4849]
[1646626784119,6.058,82.553,82.481,24.4849]
[1646626784318,121.9,82.551,82.481,24.4849]
[1646626784722,160.59008936,82.55,82.462,49.54153733]
[1646626784920,3.29121405,82.538,82.462,49.54153733]
[1646626785121,3.29121405,82.533,82.424,48.1282]
[1646626785321,136.58,82.53,82.424,66.6675]
[1646626785520,4.85762134,82.523,82.424,66.6675]
[1646626785723,121.9,82.521,82.424,66.6675]
[1646626785920,121.9,82.519,82.424,66.6675]
[1646626786120,121.9,82.517,82.424,66.6675]
[1646626786321,121.9,82.515,82.425,56.02496186]
[1646626786521,18.92787951,82.516,82.425,56.02496186]
[1646626786722,21.76401477,82.516,82.425,56.02496186]
[1646626786924,2.83613526,82.514,82.425,56.02496186]
[1646626787126,2.83613526,82.514,82.43,18.1942]
[1646626787525,121.9,82.512,82.43,18.1942]
[1646626787727,121.9,82.51,82.43,18.1942]
[1646626787926,121.9,82.508,82.43,18.1942]
[1646626788126,121.9,82.506,82.425,56.02496186]
[1646626788325,4.8366335,82.515,82.425,56.02496186]
[1646626788326,121.9,82.504,82.425,56.02496186]
[1646626788627,121.9,82.502,82.425,56.02496186]
[1646626788827,121.9,82.5,82.425,56.02496186]
[1646626789027,6.063,82.499,82.425,56.02496186]
[1646626790827,121.9,82.498,82.42,18.1973]
[1646626791031,6.063,82.499,82.397,14.10097112]
[1646626791032,4.34276781,82.495,82.397,14.10097112]
[1646626791229,121.9,82.493,82.398,1.709]
[1646626791436,121.9,82.479,82.398,1.709]
[1646626791630,136.58,82.47,82.384,1.709]
[1646626791831,121.9,82.468,82.384,1.709]
[1646626792032,121.9,82.466,82.384,1.709]
[1646626792233,121.9,82.464,82.384,1.709]
[1646626792430,121.9,82.459,82.384,1.709]
[1646626792631,6.066,82.458,82.384,1.709]
[1646626794736,121.9,82.457,82.384,1.709]
[1646626795034,6.68942438,82.456,82.384,1.709]
[1646626795235,0.62342438,82.456,82.383,48.2729]
[1646626795434,6.066,82.455,82.383,48.2729]
[1646626797739,6.066,82.455,82.39,18.2036]
[1646626797939,6.066,82.474,82.39,18.2036]
[1646626798240,6.065,82.494,82.391,34.51215738]
[1646626798641,18.49972265,82.494,82.392,95.45562214]
[1646626798846,18.49972265,82.494,82.393,0.58313322]
[1646626799043,18.49972265,82.494,82.42,18.195]
[1646626799241,18.49972265,82.494,82.421,47.45711843]
[1646626800062,18.49972265,82.494,82.4,32.8796]
[1646626800242,18.49972265,82.494,82.4,18.1996]
[1646626800945,18.49972265,82.494,82.4,36.0619]
[1646626801143,18.49972265,82.494,82.401,60.93712403]
[1646626801344,121.9,82.493,82.401,60.93712403]
[1646626801544,6.064,82.492,82.401,60.93712403]
[1646626801746,6.064,82.493,82.41,18.1982]
[1646626801945,6.064,82.493,82.411,46.432]
[1646626803446,5.0199265,82.492,82.411,46.432]
[1646626803646,6.064,82.491,82.411,46.432]
[1646626804046,6.064,82.493,82.411,46.432]
[1646626805051,127.12385108,82.492,82.411,46.432]
[1646626805253,12.43472265,82.494,82.411,46.432]
[1646626805254,121.9,82.49,82.411,46.432]
[1646626805451,73.11,82.488,82.38,18.2023]
[1646626805651,121.9,82.485,82.382,22.6439]
[1646626805852,121.9,82.479,82.382,22.6439]
[1646626806051,6.065,82.478,82.382,22.6439]
[1646626806254,1.05458124,82.477,82.39,18.2026]
[1646626806455,6.065,82.476,82.39,18.2026]
[1646626807667,121.9,82.475,82.383,49.22930147]
[1646626807871,121.9,82.473,82.383,49.22930147]
[1646626808268,121.9,82.471,82.383,49.22930147]
[1646626808668,121.9,82.469,82.383,49.22930147]
[1646626809071,121.9,82.467,82.382,22.6439]
[1646626809270,121.9,82.459,82.382,22.6439]
[1646626809471,121.9,82.457,82.382,22.6439]
[1646626809674,121.9,82.455,82.382,22.6439]
[1646626810073,121.9,82.453,82.382,22.6439]
[1646626810281,121.9,82.451,82.382,22.6439]
[1646626810574,121.9,82.449,82.382,22.6439]
[1646626810873,6.066,82.448,82.382,22.6439]
[1646626811473,127.966,82.449,82.382,22.6439]
[1646626811672,6.066,82.449,82.382,22.6439]
[1646626812472,127.966,82.449,82.382,22.6439]
[1646626812674,6.066,82.449,82.382,22.6439]
[1646626813275,6.066,82.463,82.382,22.6439]
[1646626813772,6.066,82.463,82.39,18.2027]
[1646626813973,6.066,82.467,82.39,18.2027]
[1646626814175,6.065,82.479,82.39,18.2027]
[1646626814573,6.065,82.488,82.39,18.2027]
[1646626815375,11.40470044,82.487,82.39,18.2027]
[1646626815572,6.065,82.486,82.39,18.2027]
[1646626815774,6.065,82.486,82.39,36.0687]
[1646626816373,121.9,82.485,82.39,36.0687]
[1646626816573,121.9,82.483,82.39,18.2027]
[1646626816775,1.63898036,82.469,82.39,18.2027]
[1646626816974,1.63898036,82.467,82.39,18.2027]
[1646626817175,1.63898036,82.464,82.382,22.6439]
[1646626817675,1.63898036,82.462,82.382,22.6439]
[1646626817874,1.63898036,82.461,82.382,22.6439]
[1646626818778,1.63898036,82.462,82.382,22.6439]
[1646626818976,1.63898036,82.461,82.39,18.2022]
[1646626819277,24.6969,82.467,82.39,18.2022]
[1646626820479,1.63898036,82.474,82.39,18.2022]
[1646626820679,6.065,82.473,82.39,18.2022]
[1646626820881,6.065,82.474,82.39,36.0968]
[1646626822080,6.065,82.475,82.39,36.0968]
[1646626822882,6.065,82.476,82.39,36.0968]
[1646626823383,6.065,82.477,82.39,36.0968]
[1646626823582,9.59328866,82.478,82.39,36.0968]
[1646626823785,9.59328866,82.478,82.391,6.065]
[1646626824082,9.59328866,82.478,82.4,18.1991]
[1646626824284,6.065,82.477,82.402,52.28814082]
[1646626824484,6.065,82.477,82.403,6.065]
[1646626825585,6.065,82.477,82.41,18.1981]
[1646626825784,6.065,82.477,82.411,6.064]
[1646626825983,9.59328866,82.478,82.411,6.064]
[1646626826186,9.59328866,82.478,82.412,22.7235]
[1646626826385,6.064,82.477,82.412,22.7235]
[1646626827885,6.064,82.477,82.412,40.4972]
[1646626829786,22.5107,82.489,82.413,6.064]
[1646626829787,6.064,82.485,82.413,6.064]
[1646626829987,6.064,82.487,82.413,6.064]
[1646626830389,7.70298036,82.487,82.413,6.064]
[1646626830787,6.064,82.487,82.413,6.064]
[1646626831188,7.70298036,82.487,82.413,6.064]
[1646626831390,6.064,82.487,82.413,6.064]
[1646626832490,1.63898036,82.488,82.413,6.064]
[1646626832690,22.5107,82.489,82.414,0.50396882]
[1646626832890,22.5107,82.489,82.415,6.064]
[1646626833091,22.5107,82.489,82.413,6.064]
[1646626834291,22.5107,82.489,82.412,40.4972]
[1646626835691,6.064,82.488,82.412,40.4972]
[1646626840499,6.064,82.488,82.42,18.195]
[1646626840698,23.2762,82.491,82.421,0.58413834]
[1646626840998,23.2762,82.491,82.423,0.58413834]
[1646626841425,23.2762,82.491,82.423,52.17992381]
[1646626841826,1.63898036,82.5,82.423,52.17992381]
[1646626842123,1.63898036,82.5,82.43,18.1936]
[1646626842323,1.63898036,82.5,82.431,0.73600126]
[1646626842524,22.8222,82.509,82.431,0.73600126]
[1646626842525,1.63898036,82.501,82.431,0.73600126]
[1646626843126,1.63898036,82.501,82.433,0.73600126]
[1646626843524,1.63898036,82.502,82.433,0.73600126]
[1646626843725,1.63898036,82.499,82.44,18.1914]
[1646626843925,1.63898036,82.499,82.441,65.60526253]
[1646626844324,1.63898036,82.499,82.442,22.7902]
[1646626844527,6.062,82.498,82.443,0.73600126]
[1646626844826,6.062,82.498,82.442,22.7902]
[1646626845025,7.70098036,82.498,82.442,22.7902]
[1646626845226,1.63898036,82.501,82.442,22.7902]
[1646626845425,1.63898036,82.508,82.45,18.1889]
[1646626845624,1.63898036,82.508,82.451,0.7560184]
[1646626846225,1.63898036,82.512,82.444,0.7560184]
[1646626846426,1.63898036,82.513,82.444,0.7560184]
[1646626846626,1.63898036,82.516,82.444,26.50774649]
[1646626847026,1.63898036,82.517,82.444,26.50774649]
[1646626847229,1.63898036,82.517,82.46,18.1872]
[1646626847429,22.9807,82.526,82.461,79.73493637]
[1646626847430,1.63898036,82.518,82.461,79.73493637]
[1646626847827,1.63898036,82.523,82.461,105.48666446]
[1646626848727,1.63898036,82.528,82.461,105.48666446]
[1646626848927,0.60433798,82.536,82.461,105.48666446]
[1646626848928,1.63898036,82.529,82.461,98.24533637]
[1646626849127,1.63898036,82.528,82.461,97.48931797]
[1646626849326,1.63898036,82.529,82.461,97.48931797]
[1646626849829,1.63898036,82.532,82.461,97.48931797]
[1646626851526,1.63898036,82.534,82.461,97.48931797]
[1646626852330,6.059,82.533,82.461,97.48931797]
[1646626853431,7.69798036,82.533,82.461,97.48931797]
[1646626853828,6.059,82.533,82.461,97.48931797]
[1646626854028,6.059,82.534,82.461,97.48931797]
[1646626854430,7.69798036,82.534,82.461,97.48931797]
[1646626855129,1.63898036,82.534,82.461,97.48931797]
[1646626855730,1.63898036,82.535,82.47,18.1845]
[1646626855931,2.24331834,82.536,82.471,24.7215]
[1646626856130,0.60433798,82.536,82.471,24.7215]
[1646626858834,7.69798036,82.539,82.48,18.1826]
[1646626859035,22.5171,82.542,82.482,0.5053745]
[1646626859235,1.63898036,82.544,82.482,0.5053745]
[1646626859436,24.9646,82.557,82.482,26.25710259]
[1646626859437,1.63898036,82.551,82.482,26.25710259]
[1646626859638,24.5733,82.556,82.482,26.25710259]
[1646626859836,24.5733,82.556,82.484,0.6449806]
[1646626860236,24.5733,82.556,82.491,0.65077061]
[1646626860637,24.5733,82.556,82.493,0.65077061]
[1646626862438,3.91283752,82.555,82.493,0.65077061]
[1646626862839,1.63898036,82.547,82.483,58.33862266]
[1646626863039,1.63898036,82.545,82.473,24.3311]
[1646626863239,1.63898036,82.54,82.473,24.3311]
[1646626863438,7.69798036,82.539,82.473,24.3311]
[1646626863844,1.63898036,82.538,82.473,24.3311]
[1646626864050,15.63546637,82.537,82.474,47.02129114]
[1646626864640,17.27444673,82.537,82.474,47.02129114]
[1646626865041,17.27444673,82.537,82.474,53.08029114]
[1646626865243,11.21544673,82.537,82.474,53.08029114]
[1646626865439,1.63898036,82.536,82.474,53.08029114]
[1646626865639,1.63898036,82.536,82.474,6.059]
[1646626866039,1.63898036,82.535,82.474,6.059]
[1646626866239,1.63898036,82.535,82.46,6.059]
[1646626866440,121.9,82.533,82.46,6.059]
[1646626866639,123.53898036,82.533,82.46,63.76133446]
[1646626866940,1.63898036,82.531,82.46,63.76133446]
[1646626867339,1.63898036,82.532,82.46,63.76133446]
[1646626867539,121.9,82.533,82.46,63.76133446]
[1646626867540,1.63898036,82.531,82.46,63.76133446]
[1646626867739,1.63898036,82.529,82.46,63.76133446]
[1646626867941,7.69998036,82.528,82.46,63.76133446]
[1646626868139,1.63898036,82.528,82.46,63.76133446]
[1646626868340,1.63898036,82.529,82.46,63.76133446]
[1646626868540,6.061,82.528,82.46,63.76133446]
[1646626868740,7.69998036,82.528,82.46,63.76133446]
[1646626868940,121.9,82.527,82.46,63.76133446]
[1646626869142,7.69998036,82.528,82.46,63.76133446]
[1646626869343,6.061,82.528,82.46,107.69996255]
[1646626869543,6.061,82.528,82.461,22.9002]
[1646626869743,1.63898036,82.526,82.461,22.9002]
[1646626870743,3.91283752,82.524,82.461,22.9002]
[1646626871344,24.6255,82.523,82.462,8.89713526]
[1646626871844,24.6255,82.523,82.463,2.83613526]
[1646626872043,24.6255,82.523,82.464,6.061]
[1646626872445,24.6255,82.523,82.465,2.83613526]
[1646626872646,24.6255,82.523,82.466,6.061]
[1646626873245,24.6255,82.523,82.467,2.83613526]
[1646626873446,6.059,82.522,82.467,2.83613526]
[1646626874847,6.059,82.522,82.47,18.185]
[1646626875048,1.63898036,82.524,82.47,18.185]
[1646626875249,1.63898036,82.528,82.471,26.61593526]
[1646626875451,1.63898036,82.538,82.471,52.36766335]
[1646626875649,1.63898036,82.538,82.472,28.58786335]
[1646626875849,1.63898036,82.538,82.473,63.17484606]
[1646626876048,1.63898036,82.539,82.473,91.76270941]
[1646626876247,6.059,82.538,82.48,18.1826]
[1646626876548,7.69798036,82.538,82.48,18.1826]
[1646626876749,1.63898036,82.538,82.481,2.83613526]
[1646626877150,1.63898036,82.538,82.481,28.58786335]
[1646626877551,1.63898036,82.538,82.482,25.72943526]
[1646626877953,1.63898036,82.538,82.483,2.83613526]
[1646626878851,4.97195132,82.537,82.483,2.83613526]
[1646626879054,1.63898036,82.535,82.483,2.83613526]
[1646626881657,1.63898036,82.537,82.483,2.83613526]
[1646626887288,1.63898036,82.54,82.49,18.1806]
[1646626887789,1.63898036,82.552,82.491,28.58786335]
[1646626888192,1.63898036,82.552,82.492,82.9454853]
[1646626888589,1.63898036,82.552,82.493,2.83613526]
[1646626888789,1.63898036,82.553,82.493,2.83613526]
[1646626890190,1.63898036,82.552,82.494,0.55823545]
[1646626890590,1.63898036,82.553,82.495,2.83613526]
[1646626890793,1.63898036,82.552,82.496,0.55823545]
[1646626890991,1.63898036,82.552,82.495,2.83613526]
[1646626891192,1.63898036,82.552,82.497,2.83613526]
[1646626892491,1.63898036,82.553,82.497,2.83613526]
[1646626892692,1.63898036,82.552,82.497,2.83613526]
[1646626893091,1.63898036,82.553,82.497,2.83613526]
[1646626894494,1.63898036,82.552,82.497,2.83613526]
[1646626894693,1.63898036,82.553,82.497,2.83613526]
[1646626896395,1.63898036,82.552,82.497,2.83613526]
[1646626897197,1.63898036,82.552,82.5,18.1778]
[1646626897497,1.63898036,82.572,82.501,0.77916954]
[1646626897697,1.63898036,82.572,82.503,0.77926112]
[1646626897896,1.63898036,82.579,82.503,0.77926112]
[1646626898097,1.63898036,82.581,82.505,121.9]
[1646626898295,1.63898036,82.581,82.504,25.75172809]
[1646626898296,1.63898036,82.581,82.507,121.9]
[1646626898501,1.63898036,82.58,82.508,0.77926112]
[1646626898696,1.63898036,82.58,82.508,49.66329255]
[1646626898997,1.63898036,82.583,82.509,48.88403143]
[1646626899196,1.63898036,82.584,82.51,18.95016112]
[1646626899397,1.63898036,82.583,82.51,84.77129893]
[1646626899597,1.63898036,82.583,82.511,42.68883447]
[1646626899798,1.63898036,82.583,82.512,0.77926112]
[1646626899998,1.63898036,82.583,82.512,89.48403781]
[1646626900198,1.63898036,82.583,82.513,51.72016669]
[1646626900400,22.7506,82.593,82.52,18.1727]
[1646626900401,1.63898036,82.584,82.52,18.1727]
[1646626900600,1.63898036,82.586,82.52,32.8527]
[1646626900799,1.63898036,82.587,82.521,23.13230334]
[1646626901001,1.63898036,82.587,82.522,0.52711654]
[1646626901200,1.63898036,82.588,82.522,118.06422641]
[1646626901410,1.63898036,82.588,82.524,0.57141596]
[1646626901600,1.63898036,82.588,82.541,47.42698135]
[1646626901806,1.63898036,82.592,82.542,23.6629]
[1646626902199,1.63898036,82.592,82.542,26.49903526]
[1646626902399,6.055,82.608,82.542,26.49903526]
[1646626902400,1.63898036,82.593,82.542,26.49903526]
[1646626902600,1.63898036,82.592,82.543,2.83613526]
[1646626903199,1.63898036,82.593,82.543,2.83613526]
[1646626903399,1.63898036,82.595,82.543,2.83613526]
[1646626903602,1.63898036,82.597,82.543,2.83613526]
[1646626903801,1.63898036,82.597,82.55,18.1666]
[1646626904001,6.32115746,82.654,82.55,18.1666]
[1646626904002,1.63898036,82.614,82.551,0.63193301]
[1646626904202,1.63898036,82.614,82.551,43.32076748]
[1646626904500,24.5149,82.653,82.551,43.32076748]
[1646626904501,1.63898036,82.625,82.552,42.68883447]
[1646626904701,1.63898036,82.625,82.553,24.47893301]
[1646626904902,1.63898036,82.625,82.554,46.11475083]
[1646626905103,1.63898036,82.63,82.56,18.1592]
[1646626905304,1.63898036,82.631,82.561,0.63193301]
[1646626905603,1.63898036,82.63,82.561,25.50523667]
[1646626905804,1.63898036,82.63,82.562,54.09310002]
[1646626906004,1.63898036,82.629,82.562,54.09310002]
[1646626906208,1.63898036,82.63,82.563,77.94010002]
[1646626906405,1.63898036,82.63,82.564,0.63193301]
[1646626906605,1.63898036,82.639,82.564,54.09310002]
[1646626906904,1.63898036,82.639,82.565,54.09310002]
[1646626907105,1.63898036,82.64,82.57,18.1617]
[1646626907306,1.63898036,82.64,82.571,174.03748209]
[1646626907505,1.63898036,82.645,82.572,0.63193301]
[1646626907707,1.63898036,82.647,82.571,242.23155323]
[1646626907906,1.63898036,82.647,82.573,150.48786335]
[1646626908107,1.63898036,82.647,82.575,121.9]
[1646626908307,1.63898036,82.648,82.575,121.9]
[1646626908709,1.41065508,82.651,82.576,2.83613526]
[1646626909106,1.41065508,82.651,82.59,18.1565]
[1646626909309,1.41065508,82.651,82.592,60.39490116]
[1646626910515,6.051,82.65,82.592,60.39490116]
[1646626912020,6.051,82.652,82.592,60.39490116]
[1646626914623,24.5149,82.653,82.593,2.83613526]
[1646626923040,6.051,82.652,82.593,2.83613526]
[1646626923840,24.5149,82.653,82.6,18.1547]
[1646626924050,3.28484368,82.68,82.6,18.1547]
[1646626924051,1.63898036,82.662,82.6,18.1547]
[1646626924347,1.63898036,82.678,82.601,81.83972283]
[1646626924548,1.63898036,82.679,82.601,81.83972283]
[1646626924849,1.63898036,82.678,82.62,18.1475]
[1646626925049,1.63898036,82.678,82.622,63.62042269]
[1646626925249,1.63898036,82.679,82.622,63.62042269]
[1646626925449,1.63898036,82.678,82.622,63.62042269]
[1646626925650,1.63898036,82.678,82.624,0.73956081]
[1646626926250,1.63898036,82.678,82.623,2.83613526]
[1646626926450,12.44425191,82.681,82.621,24.2475]
[1646626926451,6.049,82.677,82.621,24.2475]
[1646626926659,1.63898036,82.668,82.592,2.83613526]
[1646626926852,1.63898036,82.653,82.593,24.469]
[1646626927052,6.051,82.667,82.572,2.83613526]
[1646626927053,1.63898036,82.651,82.572,2.83613526]
[1646626927253,1.63898036,82.639,82.557,23.0497]
[1646626927454,1.04505198,82.636,82.576,64.54506369]
[1646626927853,6.051,82.635,82.576,64.54506369]
[1646626928055,6.051,82.635,82.565,24.469]
[1646626928253,7.68998036,82.635,82.565,24.469]
[1646626928654,1.63898036,82.633,82.565,24.469]
[1646626929054,6.051,82.632,82.573,61.84728736]
[1646626929257,6.051,82.635,82.573,61.84728736]
[1646626930457,1.04505198,82.636,82.573,61.84728736]
[1646626930858,24.0138,82.651,82.573,61.84728736]
[1646626931057,6.58032736,82.65,82.573,61.84728736]
[1646626931260,6.58032736,82.65,82.565,24.469]
[1646626931460,121.9,82.649,82.565,24.469]
[1646626931659,3.28484368,82.647,82.565,24.469]
[1646626931861,121.9,82.641,82.553,26.25795676]
[1646626932059,3.28484368,82.635,82.52,14.68]
[1646626932259,121.9,82.639,82.531,26.25795676]
[1646626932260,3.28484368,82.624,82.531,26.25795676]
[1646626932459,79.69032736,82.638,82.531,26.25795676]
[1646626932460,3.28484368,82.62,82.531,26.25795676]
[1646626932661,121.9,82.618,82.531,26.25795676]
[1646626932859,6.055,82.617,82.531,26.25795676]
[1646626933060,121.9,82.616,82.531,26.25795676]
[1646626933258,6.055,82.615,82.531,26.25795676]
[1646626933460,6.055,82.618,82.531,26.25795676]
[1646626933660,6.58256892,82.617,82.531,26.25795676]
[1646626933863,127.955,82.616,82.531,26.25795676]
[1646626934062,6.58256892,82.615,82.541,56.2278116]
[1646626934262,6.054,82.614,82.541,56.2278116]
[1646626934464,6.054,82.614,82.541,105.61775538]
[1646626934465,5.75234437,82.614,82.541,105.61775538]
[1646626934662,6.054,82.618,82.541,105.61775538]
[1646626935083,6.58258587,82.617,82.541,105.61775538]
[1646626935261,6.054,82.616,82.541,105.61775538]
[1646626935862,121.9,82.615,82.541,105.61775538]
[1646626936063,6.054,82.618,82.541,105.61775538]
[1646626936262,6.58286558,82.617,82.541,105.61775538]
[1646626936462,6.054,82.616,82.541,105.61775538]
[1646626936663,121.9,82.615,82.541,82.48576836]
[1646626936863,121.9,82.613,82.541,26.25795676]
[1646626937065,6.054,82.612,82.541,26.25795676]
[1646626937264,6.054,82.618,82.541,26.25795676]
[1646626937864,6.054,82.618,82.542,50.24749773]
[1646626938264,6.054,82.618,82.542,76.50204849]
[1646626938567,121.9,82.617,82.542,76.50204849]
[1646626938769,121.9,82.615,82.542,26.25455076]
[1646626938967,6.054,82.616,82.53,26.25455076]
[1646626938968,5.95311421,82.612,82.53,26.25455076]
[1646626939165,121.9,82.609,82.53,26.25455076]
[1646626939367,121.9,82.607,82.517,26.25455076]
[1646626939568,121.9,82.605,82.517,26.25455076]
[1646626939768,4.08012797,82.602,82.517,26.25455076]
[1646626939970,136.58,82.6,82.517,26.25455076]
[1646626940168,136.58,82.6,82.495,25.96812228]
[1646626940169,195.01,82.596,82.495,25.96812228]
[1646626940369,5.52084566,82.593,82.502,26.25455076]
[1646626940568,4.6914268,82.578,82.488,12.65733146]
[1646626940768,121.9,82.576,82.481,26.25455076]